bitfinex-derivatives/quotes_SOLF0:USTF0_20260304
["timestamp","ask_amount","ask_price","bid_price","bid_amount"]
[1772646005764,9.835,91.484,91.438,12.1547549]
[1772646006871,9.834,91.494,91.438,12.1547549]
[1772646007173,5.3271815,91.493,91.438,12.1547549]
[1772646007369,5.32546747,91.519,91.463,9.837]
[1772646007574,5.32546747,91.519,91.461,12.1547549]
[1772646008071,9.832,91.512,91.461,12.1547549]
[1772646008273,5.32546747,91.519,91.461,12.1547549]
[1772646008667,9.831,91.517,91.463,9.837]
[1772646008876,8.08503503,91.539,91.463,12.1547549]
[1772646008877,8.08503503,91.538,91.463,12.1547549]
[1772646009172,7.37854575,91.54,91.463,12.1547549]
[1772646009173,5.28732883,91.537,91.463,12.1547549]
[1772646009374,8.08503503,91.544,91.46,7.37854575]
[1772646009375,5.26657908,91.555,91.497,12.1547549]
[1772646009773,9.828,91.553,91.498,9.833]
[1772646010173,8.09145627,91.559,91.498,12.1547549]
[1772646010376,5.24771978,91.576,91.498,12.1547549]
[1772646010574,5.07419285,91.549,91.48,12.1547549]
[1772646011374,5.07419285,91.549,91.493,9.834]
[1772646011677,5.07419285,91.549,91.48,12.1547549]
[1772646012472,9.828,91.548,91.485,12.1547549]
[1772646012872,5.05028934,91.547,91.485,12.1547549]
[1772646013271,5.05028934,91.547,91.488,12.1547549]
[1772646013870,5.03060334,91.546,91.488,12.1547549]
[1772646015379,9.829,91.537,91.488,12.1547549]
[1772646015775,5.79744739,91.529,91.461,12.1547549]
[1772646016171,5.79744739,91.529,91.47,12.1547549]
[1772646016882,9.83,91.525,91.47,12.1547549]
[1772646017083,5.79744739,91.529,91.47,12.1547549]
[1772646017283,5.52316755,91.548,91.47,12.1547549]
[1772646018182,9.83,91.527,91.47,12.1547549]
[1772646019180,5.5177298,91.532,91.474,9.836]
[1772646019385,5.5177298,91.532,91.475,12.5005003]
[1772646020380,5.5177298,91.532,91.478,9.835]
[1772646020579,9.831,91.52,91.461,12.5005003]
[1772646020785,6.95368564,91.519,91.461,12.5005003]
[1772646021586,6.92029529,91.509,91.421,12.5005003]
[1772646023482,6.92029529,91.509,91.437,12.5005003]
[1772646024092,6.92029529,91.509,91.448,12.5005003]
[1772646024987,9.833,91.501,91.452,9.838]
[1772646025281,6.56449671,91.489,91.421,12.5005003]
[1772646025481,7.37854575,91.47,91.421,12.5005003]
[1772646025690,9.837,91.461,91.41,9.843]
[1772646026081,9.837,91.461,91.404,12.41648191]
[1772646026082,6.50496284,91.461,91.404,12.41648191]
[1772646026285,6.49745945,91.449,91.381,22.26248191]
[1772646026485,7.37854575,91.43,91.381,12.41648191]
[1772646026887,6.49745945,91.429,91.363,12.41648191]
[1772646027088,6.46992691,91.409,91.345,12.41648191]
[1772646028689,6.46992691,91.409,91.346,12.41648191]
[1772646029388,9.842,91.418,91.36,12.41648191]
[1772646029888,5.28521696,91.427,91.36,12.41648191]
[1772646029889,9.843,91.408,91.36,12.41648191]
[1772646030092,7.37854575,91.43,91.307,174.8]
[1772646030093,5.25862276,91.407,91.331,12.41648191]
[1772646030487,4.98596019,91.401,91.337,9.851]
[1772646030684,7.37854575,91.39,91.331,12.41648191]
[1772646030887,12.36450594,91.39,91.331,12.41648191]
[1772646031191,12.33823539,91.41,91.331,12.41648191]
[1772646031391,4.95968964,91.41,91.331,12.41648191]
[1772646031592,4.9584722,91.409,91.331,12.41648191]
[1772646032190,7.37854575,91.41,91.31,7.37854575]
[1772646032191,9.847,91.375,91.31,7.37854575]
[1772646032395,7.37854575,91.38,91.309,12.41648191]
[1772646032798,4.45099253,91.393,91.311,12.41648191]
[1772646032995,9.845,91.39,91.324,12.41648191]
[1772646033293,4.45099253,91.393,91.324,12.41648191]
[1772646033488,4.42453669,91.411,91.329,12.41648191]
[1772646033893,7.37854575,91.41,91.329,12.41648191]
[1772646034094,4.39905442,91.409,91.329,12.41648191]
[1772646035098,4.39905442,91.409,91.31,7.37854575]
[1772646035099,9.843,91.407,91.332,12.41648191]
[1772646036399,9.843,91.407,91.336,9.851]
[1772646036695,9.843,91.407,91.337,12.41648191]
[1772646036898,4.97622066,91.426,91.337,12.41648191]
[1772646037696,4.97622066,91.426,91.37,12.41648191]
[1772646038697,4.97622066,91.426,91.372,12.41648191]
[1772646039093,4.97622066,91.426,91.374,9.847]
[1772646039888,9.841,91.424,91.372,12.41648191]
[1772646040089,4.97622066,91.426,91.372,12.41648191]
[1772646040796,4.97622066,91.426,91.382,9.846]
[1772646041593,7.37854575,91.44,91.382,9.846]
[1772646041790,7.37854575,91.44,91.383,12.41648191]
[1772646041991,5.3768367,91.443,91.393,9.845]
[1772646042196,5.35370632,91.463,91.394,12.41648191]
[1772646042392,19.662,91.523,91.351,153.215]
[1772646042393,5.35560959,91.482,91.437,9.84]
[1772646042599,5.35560959,91.482,91.422,12.41648191]
[1772646042999,5.35560959,91.479,91.402,12.41648191]
[1772646043195,5.33256513,91.459,91.385,12.41648191]
[1772646043494,9.839,91.444,91.386,9.845]
[1772646043794,5.33256513,91.459,91.387,12.41648191]
[1772646044198,9.839,91.444,91.389,9.845]
[1772646044401,9.839,91.444,91.389,22.26148191]
[1772646044996,9.839,91.444,91.39,12.41648191]
[1772646045305,5.33256513,91.459,91.392,12.41648191]
[1772646046204,5.33256513,91.459,91.404,9.843]
[1772646046502,4.97079995,91.476,91.405,12.41648191]
[1772646047302,9.838,91.46,91.405,12.41648191]
[1772646047498,4.9475268,91.459,91.381,12.41648191]
[1772646048104,4.9475268,91.445,91.381,12.41648191]
[1772646048800,5.00633578,91.439,91.381,12.41648191]
[1772646049402,9.841,91.428,91.341,11.15852025]
[1772646050295,9.841,91.428,91.365,9.848]
[1772646050500,9.841,91.426,91.365,9.848]
[1772646050701,9.841,91.426,91.366,11.15852025]
[1772646050896,9.842,91.414,91.346,9.85]
[1772646051106,5.16199152,91.413,91.321,11.15852025]
[1772646051304,5.14129256,91.399,91.321,11.15852025]
[1772646051703,9.844,91.396,91.334,11.15852025]
[1772646052601,5.14129256,91.399,91.334,11.15852025]
[1772646052807,5.14129256,91.399,91.301,11.15852025]
[1772646053104,5.14129256,91.399,91.324,9.852]
[1772646053105,9.846,91.378,91.324,9.852]
[1772646053305,5.14129256,91.399,91.325,11.15852025]
[1772646053901,9.846,91.378,91.325,11.15852025]
[1772646055299,14.96040606,91.387,91.326,11.15852025]
[1772646055499,9.845,91.387,91.326,11.15852025]
[1772646056105,5.11490248,91.404,91.349,11.15852025]
[1772646056310,5.11490248,91.404,91.321,11.15852025]
[1772646056809,9.844,91.4,91.336,11.15852025]
[1772646057406,5.11490248,91.404,91.336,11.15852025]
[1772646058610,4.96369162,91.422,91.353,11.15852025]
[1772646059101,4.96369162,91.422,91.365,11.15852025]
[1772646059509,4.94309716,91.439,91.365,11.15852025]
[1772646059709,9.84,91.434,91.379,11.15852025]
[1772646060314,9.84,91.434,91.36,7.37854575]
[1772646060315,9.839,91.444,91.383,11.15852025]
[1772646060502,4.91787307,91.458,91.383,11.15852025]
[1772646061003,9.839,91.447,91.386,11.15852025]
[1772646061709,4.89753083,91.442,91.386,11.15852025]
[1772646061907,4.89753083,91.46,91.386,11.15852025]
[1772646062409,7.38079132,91.47,91.332,153.247]
[1772646062410,7.38079132,91.47,91.403,11.15852025]
[1772646063003,4.82324655,91.477,91.403,11.15852025]
[1772646063212,4.82324655,91.477,91.421,11.15852025]
[1772646063413,7.38079132,91.49,91.421,11.15852025]
[1772646063711,4.80354488,91.489,91.421,11.15852025]
[1772646063908,4.80354488,91.472,91.421,11.15852025]
[1772646064113,4.80354488,91.472,91.391,11.15852025]
[1772646064312,4.78519041,91.469,91.391,11.15852025]
[1772646064611,9.838,91.456,91.401,9.844]
[1772646064808,9.838,91.456,91.401,21.00252025]
[1772646065009,9.838,91.456,91.402,11.15852025]
[1772646065614,4.59397592,91.453,91.371,11.15852025]
[1772646066716,4.59397592,91.453,91.383,11.15852025]
[1772646067416,9.839,91.441,91.386,9.845]
[1772646067720,4.32511556,91.439,91.351,11.15852025]
[1772646068817,9.841,91.425,91.369,9.847]
[1772646069018,4.32511556,91.439,91.37,11.15852025]
[1772646069619,4.30328368,91.46,91.382,11.15852025]
[1772646071520,9.838,91.452,91.393,11.15852025]
[1772646071720,4.30328368,91.46,91.393,11.15852025]
[1772646073023,4.30328368,91.46,91.396,11.15852025]
[1772646073220,8.04657235,91.469,91.396,11.15852025]
[1772646073524,7.38079132,91.47,91.404,11.15852025]
[1772646073726,4.25325059,91.449,91.379,11.15852025]
[1772646073923,4.25325059,91.459,91.379,11.15852025]
[1772646074620,9.839,91.443,91.394,9.844]
[1772646077131,9.839,91.443,91.384,11.15852025]
[1772646078428,9.839,91.443,91.387,9.845]
[1772646078624,4.20827798,91.458,91.384,11.15852025]
[1772646079837,9.84,91.439,91.384,21.00452025]
[1772646080031,9.84,91.439,91.385,11.45743505]
[1772646080833,9.841,91.429,91.368,11.45743505]
[1772646081632,9.84,91.437,91.377,11.45743505]
[1772646081935,8.04657235,91.449,91.377,11.45743505]
[1772646082128,4.19706322,91.44,91.377,11.45743505]
[1772646083032,4.19706322,91.44,91.379,11.45743505]
[1772646084425,9.84,91.439,91.385,11.45743505]
[1772646085431,9.84,91.439,91.388,9.845]
[1772646085630,9.841,91.432,91.385,11.45743505]
[1772646086026,9.841,91.432,91.386,9.845]
[1772646088238,3.43349143,91.421,91.361,11.22356861]
[1772646088839,9.844,91.402,91.361,11.22356861]
[1772646089834,9.842,91.418,91.373,9.847]
[1772646090044,9.842,91.418,91.361,11.22356861]
[1772646090340,3.40651748,91.426,91.361,11.22356861]
[1772646090841,9.843,91.412,91.363,9.848]
[1772646091842,9.843,91.404,91.354,9.849]
[1772646092136,3.32298536,91.428,91.34,7.38079132]
[1772646092336,3.32298536,91.428,91.37,11.22356861]
[1772646092741,3.48784678,91.411,91.353,11.22356861]
[1772646092938,3.48784678,91.409,91.321,11.22356861]
[1772646093337,3.46141078,91.429,91.354,11.22356861]
[1772646094344,9.843,91.41,91.364,11.22356861]
[1772646094544,3.42594611,91.428,91.364,11.22356861]
[1772646095543,9.842,91.419,91.366,9.847]
[1772646096341,13.25569477,91.427,91.372,9.847]
[1772646096645,3.41469477,91.427,91.372,9.847]
[1772646098550,9.842,91.414,91.372,9.847]
[1772646099345,9.842,91.422,91.38,9.846]
[1772646099545,9.842,91.422,91.367,11.22356861]
[1772646100952,9.842,91.409,91.367,11.22356861]
[1772646101544,9.84,91.418,91.371,11.22356861]
[1772646102451,9.84,91.418,91.374,21.06856861]
[1772646102641,9.84,91.418,91.375,11.22356861]
[1772646103848,9.97207025,91.455,91.401,11.22356861]
[1772646104151,9.833,91.482,91.431,11.22356861]
[1772646104353,8.11044382,91.489,91.44,3.4463626]
[1772646104550,8.11044382,91.498,91.441,11.22356861]
[1772646104750,9.832,91.498,91.451,11.22356861]
[1772646104946,2.43977834,91.499,91.451,11.22356861]
[1772646105151,3.4463626,91.49,91.451,11.22356861]
[1772646105445,13.2793626,91.49,91.451,11.22356861]
[1772646105653,3.4463626,91.48,91.431,11.22356861]
[1772646106355,3.4463626,91.46,91.415,11.22356861]
[1772646106546,2.54205472,91.484,91.415,11.22356861]
[1772646108455,2.36595241,91.503,91.432,11.22356861]
[1772646109051,9.832,91.493,91.442,11.67439801]
[1772646110557,2.36595241,91.503,91.442,11.67439801]
[1772646111059,2.36595241,91.503,91.445,11.67439801]
[1772646111360,277.53928389,91.51,91.411,11.67439801]
[1772646111361,2.31087048,91.489,91.411,11.67439801]
[1772646112154,2.31087048,91.489,91.427,11.67439801]
[1772646113454,2.34635572,91.508,91.441,11.67439801]
[1772646114051,9.832,91.493,91.442,11.67439801]
[1772646115561,9.833,91.485,91.442,11.67439801]
[1772646115748,2.17394387,91.499,91.391,11.67439801]
[1772646115949,2.17394387,91.499,91.424,11.67439801]
[1772646117258,2.17394387,91.499,91.449,11.67439801]
[1772646117259,9.832,91.498,91.449,11.67439801]
[1772646117658,9.833,91.49,91.449,11.67439801]
[1772646120463,270.16166442,91.51,91.449,11.67439801]
[1772646121062,1.9764374,91.509,91.449,11.67439801]
[1772646121866,270.16166442,91.51,91.459,11.67439801]
[1772646122765,9.83,91.509,91.46,21.51039801]
[1772646122965,1.90566643,91.509,91.46,11.67439801]
[1772646123170,1.90566643,91.509,91.43,7.37055202]
[1772646123171,9.831,91.503,91.449,9.837]
[1772646123371,9.831,91.503,91.45,11.67439801]
[1772646124776,9.832,91.496,91.45,11.67439801]
[1772646128365,1.90566643,91.509,91.452,11.67439801]
[1772646129865,1.90566643,91.509,91.389,153.126]
[1772646129866,2.08472535,91.489,91.412,11.67439801]
[1772646130472,2.08472535,91.489,91.429,11.67439801]
[1772646130970,9.834,91.477,91.429,11.67439801]
[1772646131373,2.08472535,91.489,91.429,11.67439801]
[1772646131580,2.05059293,91.509,91.429,11.67439801]
[1772646131778,2.05059293,91.545,91.446,11.67439801]
[1772646131981,2.05059293,91.529,91.446,11.67439801]
[1772646132678,9.83,91.516,91.446,11.67439801]
[1772646132886,9.83,91.516,91.468,11.67439801]
[1772646133281,2.29035104,91.546,91.468,11.67439801]
[1772646133578,2.29035104,91.546,91.479,11.67439801]
[1772646133983,2.29021905,91.578,91.491,11.67439801]
[1772646134284,2.27803986,91.615,91.528,11.67439801]
[1772646134480,2.4161974,91.599,91.528,11.67439801]
[1772646134680,2.4161974,91.597,91.532,9.828]
[1772646134982,2.4161974,91.597,91.491,11.67439801]
[1772646135186,9.823,91.581,91.52,9.829]
[1772646135578,7.37055202,91.56,91.481,11.67439801]
[1772646135777,9.825,91.558,91.499,11.67439801]
[1772646136379,2.4040754,91.56,91.502,9.831]
[1772646136581,9.824,91.568,91.503,11.67439801]
[1772646136988,9.825,91.56,91.503,11.67439801]
[1772646137588,9.826,91.55,91.503,11.67439801]
[1772646138688,9.827,91.543,91.48,10.80680747]
[1772646138888,9.827,91.543,91.484,10.80680747]
[1772646139387,2.83427728,91.549,91.484,10.80680747]
[1772646139388,7.37055202,91.54,91.484,10.80680747]
[1772646140686,2.83427728,91.549,91.484,10.80680747]
[1772646142384,9.826,91.548,91.485,9.833]
[1772646142584,9.826,91.548,91.486,10.80680747]
[1772646144586,9.826,91.548,91.49,10.80680747]
[1772646144788,20.12872591,91.622,91.49,10.80680747]
[1772646144789,2.37083164,91.57,91.49,10.80680747]
[1772646145487,2.37083164,91.57,91.511,10.78503451]
[1772646147086,2.38451821,91.559,91.495,10.78503451]
[1772646148394,9.827,91.541,91.495,10.78503451]
[1772646149696,9.826,91.551,91.495,10.78503451]
[1772646150500,9.827,91.543,91.495,10.78503451]
[1772646151896,2.35586042,91.578,91.495,10.78503451]
[1772646152099,2.35586042,91.594,91.511,10.78503451]
[1772646152299,2.35586042,91.594,91.529,10.78503451]
[1772646152798,2.35586042,91.594,91.491,10.78503451]
[1772646152998,2.10821088,91.579,91.491,10.78503451]
[1772646153297,2.10821088,91.579,91.511,10.78503451]
[1772646154093,9.825,91.556,91.511,10.78503451]
[1772646154903,2.08928552,91.564,91.513,9.83]
[1772646155095,2.08928552,91.564,91.513,20.61503451]
[1772646155292,2.08928552,91.564,91.514,10.78503451]
[1772646155499,7.37055202,91.58,91.514,10.78503451]
[1772646155701,2.22880749,91.579,91.514,10.78503451]
[1772646156803,9.824,91.57,91.522,10.78503451]
[1772646157203,9.823,91.578,91.525,10.78503451]
[1772646158401,9.823,91.578,91.526,9.829]
[1772646158603,2.2679752,91.596,91.525,10.78503451]
[1772646159199,9.824,91.569,91.525,10.78503451]
[1772646159405,2.36250204,91.579,91.525,10.78503451]
[1772646160306,2.36250204,91.579,91.491,10.78503451]
[1772646160903,9.826,91.549,91.503,10.78503451]
[1772646161308,2.34017591,91.559,91.503,10.78503451]
[1772646161603,2.34017591,91.559,91.461,10.78503451]
[1772646162410,2.34017591,91.559,91.488,10.78503451]
[1772646162602,10.34630538,91.577,91.488,10.78503451]
[1772646162809,2.33058494,91.577,91.488,10.78503451]
[1772646163114,9.826,91.555,91.496,10.78503451]
[1772646163611,2.33058494,91.577,91.498,10.78503451]
[1772646163612,9.826,91.547,91.498,10.78503451]
[1772646163812,2.3166997,91.559,91.498,10.78503451]
[1772646165212,9.827,91.54,91.498,10.78503451]
[1772646165612,2.3166997,91.559,91.498,10.78503451]
[1772646166009,9.826,91.547,91.499,9.831]
[1772646166219,9.826,91.547,91.498,10.78503451]
[1772646166519,2.3166997,91.559,91.498,10.78503451]
[1772646167419,9.827,91.54,91.498,10.78503451]
[1772646168217,9.828,91.532,91.482,20.61803451]
[1772646168523,1.91044137,91.544,91.483,11.20001978]
[1772646169221,9.827,91.543,91.489,11.20001978]
[1772646169422,1.91044137,91.544,91.489,11.20001978]
[1772646170415,9.828,91.536,91.489,11.20001978]
[1772646170821,8.03186799,91.559,91.491,11.20001978]
[1772646171024,1.68521818,91.559,91.491,11.20001978]
[1772646171319,9.827,91.537,91.491,11.20001978]
[1772646171626,9.71708617,91.559,91.491,11.20001978]
[1772646171927,1.68521818,91.559,91.491,11.20001978]
[1772646172522,1.65398812,91.539,91.476,11.20001978]
[1772646172720,7.37055202,91.52,91.476,11.20001978]
[1772646173424,9.83,91.51,91.476,11.20001978]
[1772646173627,7.37055202,91.52,91.476,11.20001978]
[1772646174026,9.83,91.512,91.476,11.20001978]
[1772646174425,9.829,91.52,91.476,11.20001978]
[1772646174629,1.60490835,91.56,91.476,11.20001978]
[1772646175333,9.827,91.541,91.495,11.20001978]
[1772646176831,9.828,91.534,91.495,11.20001978]
[1772646177734,9.829,91.527,91.479,11.20001978]
[1772646177931,1.38954607,91.545,91.479,11.20001978]
[1772646178130,8.7488744,91.53,91.479,11.20001978]
[1772646178329,9.83,91.515,91.479,11.20001978]
[1772646179329,7.37055202,91.55,91.479,11.20001978]
[1772646179632,1.63277895,91.554,91.479,11.20001978]
[1772646180430,9.827,91.546,91.496,9.832]
[1772646180630,9.827,91.546,91.497,11.20001978]
[1772646180830,8.09895464,91.568,91.497,11.20001978]
[1772646180831,8.09895464,91.567,91.497,11.20001978]
[1772646181031,8.09895464,91.569,91.516,11.20001978]
[1772646181233,8.09895464,91.584,91.516,11.20001978]
[1772646181429,8.09895464,91.604,91.52,7.37055202]
[1772646181628,8.09895464,91.603,91.538,11.20001978]
[1772646181829,1.583876,91.601,91.538,11.20001978]
[1772646182025,1.583876,91.599,91.501,11.20001978]
[1772646182232,1.57312864,91.597,91.522,11.20001978]
[1772646183429,9.821,91.594,91.536,11.20001978]
[1772646183627,1.57312864,91.597,91.536,11.20001978]
[1772646184331,1.70802275,91.589,91.536,11.20001978]
[1772646184735,2.58056971,91.587,91.518,11.20001978]
[1772646184937,2.58056971,91.585,91.518,11.20001978]
[1772646185231,2.57012496,91.583,91.518,11.20001978]
[1772646185430,2.56959585,91.581,91.518,11.20001978]
[1772646185828,9.92974635,91.57,91.518,11.20001978]
[1772646186023,9.826,91.551,91.475,11.20001978]
[1772646186228,2.55931632,91.549,91.475,11.20001978]
[1772646186523,7.3601505,91.55,91.475,11.20001978]
[1772646186524,9.6592945,91.53,91.475,11.20001978]
[1772646187128,8.09895464,91.545,91.479,11.20001978]
[1772646187323,2.28861119,91.543,91.479,11.20001978]
[1772646187524,2.28861119,91.542,91.479,11.20001978]
[1772646188031,9.829,91.521,91.479,11.20001978]
[1772646188531,9.83,91.51,91.441,11.20001978]
[1772646189534,9.83,91.51,91.451,11.20001978]
[1772646189936,9.831,91.502,91.451,11.20001978]
[1772646190530,9.831,91.502,91.452,9.837]
[1772646190735,9.83,91.51,91.453,11.20001978]
[1772646191530,9.829,91.519,91.456,9.836]
[1772646191736,9.829,91.519,91.453,11.20001978]
[1772646192037,9.828,91.528,91.465,11.20001978]
[1772646193537,9.828,91.528,91.471,11.20001978]
[1772646194237,13.43769873,91.563,91.471,11.20001978]
[1772646194238,2.71109771,91.535,91.471,11.20001978]
[1772646194941,9.83,91.512,91.471,11.20001978]
[1772646196034,9.829,91.52,91.471,11.20001978]
[1772646198037,9.83,91.513,91.471,11.20001978]
[1772646200742,2.73875525,91.509,91.417,10.98289366]
[1772646201838,9.835,91.471,91.418,9.84]
[1772646202140,9.835,91.471,91.419,10.98289366]
[1772646202935,2.72961027,91.493,91.419,10.98289366]
[1772646203136,2.66087609,91.509,91.419,10.98289366]
[1772646203537,9.832,91.498,91.446,10.98289366]
[1772646203939,2.66035026,91.529,91.446,10.98289366]
[1772646204142,9.83,91.509,91.462,10.98289366]
[1772646205641,2.40294771,91.512,91.431,11.01134708]
[1772646205942,2.40294771,91.512,91.453,11.01134708]
[1772646206833,2.30441106,91.528,91.453,11.01134708]
[1772646207538,8.05780127,91.541,91.462,11.01134708]
[1772646207844,2.29614922,91.545,91.462,11.01134708]
[1772646208035,2.29614922,91.545,91.471,11.01134708]
[1772646208232,9.827,91.541,91.485,11.01134708]
[1772646209043,9.828,91.533,91.485,11.01134708]
[1772646212245,9.827,91.541,91.487,11.01134708]
[1772646212447,2.12979334,91.55,91.487,11.01134708]
[1772646212643,2.05378881,91.539,91.451,11.01134708]
[1772646212949,2.05378881,91.539,91.45,7.3601505]
[1772646212950,2.05378881,91.539,91.472,11.01134708]
[1772646213852,9.828,91.528,91.473,11.01134708]
[1772646214152,2.05378881,91.539,91.473,11.01134708]
[1772646214347,9.828,91.528,91.474,9.834]
[1772646214548,2.05378881,91.539,91.475,11.01134708]
[1772646214948,9.828,91.528,91.475,11.01134708]
[1772646216152,9.829,91.521,91.475,11.01134708]
[1772646216950,9.83,91.514,91.475,11.01134708]
[1772646217454,1.72153527,91.519,91.431,11.01134708]
[1772646218457,9.831,91.502,91.452,11.01134708]
[1772646218953,1.72153527,91.519,91.43,7.3601505]
[1772646218954,9.83,91.51,91.455,9.836]
[1772646219258,9.83,91.51,91.456,11.01134708]
[1772646219653,9.829,91.52,91.469,11.01134708]
[1772646219955,1.70741741,91.535,91.469,11.01134708]
[1772646220155,7.3601505,91.54,91.469,11.01134708]
[1772646220156,9.831,91.506,91.469,11.01134708]
[1772646220847,9.832,91.499,91.447,11.01134708]
[1772646221449,1.5240066,91.499,91.432,11.01134708]
[1772646223257,9.834,91.473,91.432,11.01134708]
[1772646224962,9.833,91.482,91.432,11.01134708]
[1772646226058,1.25225373,91.484,91.432,11.01134708]
[1772646226264,1.25225373,91.474,91.414,11.01134708]
[1772646226858,1.20574954,91.459,91.371,11.01134708]
[1772646227056,7.3601505,91.44,91.371,11.01134708]
[1772646227457,9.838,91.437,91.377,11.01134708]
[1772646227958,7.3601505,91.44,91.377,11.01134708]
[1772646228160,7.3601505,91.45,91.388,11.01134708]
[1772646228859,1.18594261,91.46,91.393,10.90601271]
[1772646229053,7.3601505,91.47,91.393,10.90601271]
[1772646229258,9.835,91.469,91.408,10.90601271]
[1772646229963,9.836,91.462,91.408,10.90601271]
[1772646231361,9.836,91.462,91.409,9.841]
[1772646231665,9.836,91.462,91.41,10.90601271]
[1772646234157,7.3601505,91.47,91.412,9.841]
[1772646234360,1.12670789,91.478,91.413,10.90601271]
[1772646235270,7.3601505,91.49,91.413,10.90601271]
[1772646235271,0.73604595,91.469,91.413,10.90601271]
[1772646235569,0.73612331,91.449,91.371,10.90601271]
[1772646236469,9.839,91.433,91.384,10.90601271]
[1772646237164,9.839,91.426,91.384,10.90601271]
[1772646237765,7.3601505,91.45,91.385,10.90601271]
[1772646237970,0.4802039,91.449,91.385,10.90601271]
[1772646238968,9.838,91.436,91.386,9.844]
[1772646239173,9.838,91.436,91.386,20.75001271]
[1772646240868,9.839,91.429,91.386,10.90601271]
[1772646241271,0.42442319,91.434,91.386,10.90601271]
[1772646241465,0.40813919,91.45,91.386,10.90601271]
[1772646241666,0.40813919,91.466,91.398,10.90601271]
[1772646242875,0.40813919,91.466,91.416,10.90601271]
[1772646244174,9.836,91.459,91.416,10.90601271]
[1772646244776,0.40813919,91.466,91.416,10.90601271]
[1772646244777,9.837,91.45,91.416,10.90601271]
[1772646245779,9.837,91.45,91.325,20.28787759]
[1772646245780,9.835,91.466,91.42,10.90601271]
[1772646246278,9.836,91.46,91.42,10.90601271]
[1772646247578,0.48916956,91.463,91.381,10.90601271]
[1772646247970,0.48916956,91.463,91.403,10.90601271]
[1772646248482,9.837,91.444,91.403,10.90601271]
[1772646248682,7.37827015,91.48,91.38,7.37827015]
[1772646248683,0.54491921,91.478,91.407,10.90601271]
[1772646249277,9.835,91.469,91.424,9.84]
[1772646249473,0.54491921,91.478,91.425,10.90601271]
[1772646249678,0.52992032,91.499,91.425,10.90601271]
[1772646250079,0.52992032,91.499,91.436,10.90601271]
[1772646250381,0.52992032,91.499,91.401,10.90601271]
[1772646250783,9.834,91.476,91.428,10.90601271]
[1772646251681,9.835,91.469,91.428,10.90601271]
[1772646252679,9.834,91.476,91.428,10.90601271]
[1772646253081,8.88960189,91.499,91.428,10.90601271]
[1772646253286,0.71090787,91.499,91.428,10.90601271]
[1772646253486,9.833,91.485,91.438,10.90601271]
[1772646253681,0.71090787,91.499,91.438,10.90601271]
[1772646253886,0.69643979,91.519,91.438,10.90601271]
[1772646254478,0.72594031,91.499,91.421,10.90601271]
[1772646254881,8.18688483,91.513,91.421,10.90601271]
[1772646254882,0.72594031,91.479,91.421,10.90601271]
[1772646255282,9.836,91.462,91.421,10.90601271]
[1772646255979,0.72594031,91.479,91.421,10.90601271]
[1772646256188,9.836,91.454,91.403,10.90601271]
[1772646256485,0.69071741,91.459,91.403,10.90601271]
[1772646256685,0.69071741,91.459,91.361,10.90601271]
[1772646257280,0.67701853,91.448,91.374,10.90601271]
[1772646257588,0.67689853,91.439,91.374,10.90601271]
[1772646258489,9.839,91.433,91.374,10.90601271]
[1772646258690,10.48107098,91.433,91.374,10.90601271]
[1772646258990,0.64207098,91.45,91.374,10.90601271]
[1772646259684,7.37827015,91.46,91.377,10.40163555]
[1772646259685,0.62875316,91.44,91.377,10.40163555]
[1772646259885,0.62875316,91.439,91.377,10.40163555]
[1772646261590,0.70057454,91.434,91.377,10.40163555]
[1772646261986,0.70057454,91.43,91.377,10.40163555]
[1772646263392,9.839,91.426,91.377,10.40163555]
[1772646263993,18.03921809,91.439,91.383,10.28505492]
[1772646264189,8.20121809,91.438,91.383,10.28505492]
[1772646264395,0.79832393,91.465,91.383,10.28505492]
[1772646265291,0.79832393,91.465,91.404,10.28627644]
[1772646265794,9.836,91.455,91.404,10.28627644]
[1772646266395,0.79832393,91.465,91.404,10.28627644]
[1772646267603,0.77285413,91.479,91.404,10.28627644]
[1772646268093,7.37827015,91.49,91.404,10.28627644]
[1772646269506,9.835,91.47,91.424,10.28157728]
[1772646269905,9.834,91.48,91.424,10.28157728]
[1772646270802,9.833,91.489,91.424,10.28157728]
[1772646270998,9.833,91.489,91.428,10.20933231]
[1772646272406,9.833,91.489,91.433,9.839]
[1772646272708,9.833,91.489,91.434,10.21458196]